bitfinex/quotes_ETHUSD_20220212
["timestamp","ask_amount","ask_price","bid_price","bid_amount"]
[1644628063726,0.96421807,2938.7,2937.6,1.87275]
[1644628063727,3.51584507,2938.6,2937.6,1.87275]
[1644628063926,3.68594507,2938.6,2937.6,1.70265]
[1644628064127,0.1701,2938.6,2937.6,1.70265]
[1644628066179,0.1701,2938.6,2938.0,0.00843848]
[1644628066379,0.1701,2938.6,2938.0,1.71094848]
[1644628066983,0.1701,2938.6,2938.1,0.85126]
[1644628067184,0.9088823,2938.2,2938.1,0.85126]
[1644628067784,0.9088823,2938.2,2938.0,1.70251]
[1644628067985,0.1785363,2938.8,2938.0,1.70251]
[1644628068384,0.1701,2938.8,2938.0,1.65251]
[1644628068584,0.17853649,2938.8,2938.3,0.00843819]
[1644628069222,1.1134018,2938.4,2938.3,0.00843819]
[1644628069620,1.1134018,2938.4,2938.0,1.65251]
[1644628069820,0.00843639,2938.8,2938.2,0.00843824]
[1644628070022,0.00843639,2938.8,2938.2,0.85969824]
[1644628070623,0.00843639,2938.8,2938.2,0.00843824]
[1644628070825,0.90885852,2938.4,2937.7,1.7026]
[1644628072226,0.90885852,2938.4,2937.9,0.00843852]
[1644628072526,0.00843581,2938.8,2938.0,0.85132]
[1644628072772,0.00843581,2938.8,2938.1,3.77094508]
[1644628072972,0.00843581,2938.8,2938.1,0.6729]
[1644628073174,0.1701,2939.1,2938.1,0.6729]
[1644628073572,0.1701,2939.1,2938.3,0.00843815]
[1644628073573,0.00843659,2938.8,2938.3,0.00843815]
[1644628073974,1.02126056,2938.8,2938.3,0.00843815]
[1644628074373,1.01282397,2938.8,2938.1,1.70226]
[1644628074577,1.02126075,2938.8,2938.4,0.00843805]
[1644628075478,1.01282397,2938.8,2938.1,1.70226]
[1644628075882,1.02126084,2938.8,2938.5,0.00843801]
[1644628076735,2.31642987,2939.2,2938.1,1.70226]
[1644628076935,2.91642987,2939.2,2938.1,1.70226]
[1644628077135,0.00843697,2938.8,2938.5,0.00843796]
[1644628078037,1.15386917,2938.9,2938.3,0.85124]
[1644628078237,0.00843697,2938.8,2938.5,0.00843796]
[1644628079137,1.15386917,2938.9,2938.1,1.87236]
[1644628079540,0.00843697,2938.8,2938.5,0.00843796]
[1644628080369,1.15386917,2938.9,2938.1,1.87236]
[1644628080570,0.00843697,2938.8,2938.5,0.00843796]
[1644628081674,1.15386917,2938.9,2938.1,1.87236]
[1644628081874,0.00843697,2938.8,2938.5,0.00843796]
[1644628082879,2.00519677,2938.9,2938.1,0.1701]
[1644628083178,0.00843697,2938.8,2938.5,0.00843796]
[1644628084031,1.75519677,2938.9,2938.1,0.1701]
[1644628084224,0.00843697,2938.8,2938.5,0.00843796]
[1644628085226,0.1701,2939.0,2938.1,0.85128]
[1644628085427,1.03546537,2938.7,2938.5,0.00843796]
[1644628086431,1.03546537,2938.7,2938.1,0.85128]
[1644628086628,1.03546537,2938.7,2938.5,0.00843801]
[1644628086828,0.00843687,2938.8,2938.5,0.00843801]
[1644628087627,3.9333,2939.7,2938.1,3.49539]
[1644628087628,6.3095,2939.6,2938.1,3.49539]
[1644628087872,0.00843697,2938.8,2938.5,0.00843796]
[1644628088373,0.00843697,2938.8,2938.5,0.85948796]
[1644628088573,0.00843697,2938.8,2938.5,1.71065796]
[1644628088773,0.88453701,2939.4,2938.5,1.71065796]
[1644628088774,0.88453701,2939.4,2938.5,1.70222]
[1644628088977,0.00843697,2938.8,2938.5,1.71065796]
[1644628089176,0.00843697,2938.8,2938.5,0.85960796]
[1644628090073,0.88453701,2939.4,2938.5,0.85117]
[1644628090273,0.00843697,2938.8,2938.5,1.02970796]
[1644628091275,0.88453701,2939.4,2938.5,1.02127]
[1644628091534,0.00843697,2938.8,2938.5,1.02970796]
[1644628092425,0.88453701,2939.4,2938.5,1.02127]
[1644628092625,0.88453701,2939.4,2938.5,0.64313796]
[1644628092626,0.00843697,2938.8,2938.5,0.64313796]
[1644628093527,0.1701,2939.3,2938.5,0.6347]
[1644628093926,0.00843697,2938.8,2938.5,0.64313796]
[1644628094327,0.00843697,2938.8,2938.6,3.42470995]
[1644628094526,0.00843697,2938.8,2938.5,0.64313796]
[1644628094727,0.88453701,2939.4,2938.5,0.4847]
[1644628094927,0.88453701,2939.4,2938.8,0.85109]
[1644628095128,3.38543984,2939.6,2938.8,0.85109]
[1644628095381,0.20383984,2939.6,2938.8,0.85109]
[1644628095781,0.20383984,2939.6,2938.6,1.71049791]
[1644628095980,0.1701,2939.6,2938.6,1.70206]
[1644628096184,0.0084366,2939.3,2938.6,1.71049888]
[1644628097186,0.88867658,2939.4,2938.6,1.70206]
[1644628097386,0.00843683,2939.1,2938.6,1.71049839]
[1644628097986,0.00843683,2939.1,2938.6,1.23290039]
[1644628098392,0.88867658,2939.4,2938.6,1.224462]
[1644628098686,0.88867658,2939.4,2938.6,4.71609635]
[1644628098687,0.00843693,2939.0,2938.6,4.71609635]
[1644628098887,0.00843693,2939.0,2938.6,1.2329002]
[1644628099128,0.00843693,2939.0,2938.6,1.0178602]
[1644628099430,0.00843693,2939.0,2938.6,0.9565402]
[1644628099628,0.1701,2939.6,2938.6,0.948102]
[1644628099927,0.00843697,2938.9,2938.6,4.44264183]
[1644628100128,0.00843697,2938.9,2938.6,0.95654011]
[1644628100829,0.1701,2939.6,2938.6,1.799102]
[1644628101028,0.00843702,2938.9,2938.6,5.28037351]
[1644628101228,0.00843702,2938.9,2938.6,1.80754001]
[1644628101629,0.00843702,2938.9,2938.6,5.27828645]
[1644628101830,0.00843702,2938.9,2938.7,0.85097]
[1644628102033,0.1701,2939.6,2938.9,0.85098]
[1644628102230,0.20384022,2939.6,2938.9,0.85098]
[1644628102432,0.03374022,2939.6,2938.9,1.7019]
[1644628102631,0.03374022,2939.6,2939.3,0.8507191]
[1644628102882,0.03374022,2939.6,2939.4,0.85075]
[1644628103283,0.80843609,2940.0,2939.4,0.85075]
[1644628103480,0.00570018,2939.6,2939.3,0.85073]
[1644628104381,0.80843609,2940.0,2939.3,0.85073]
[1644628104585,0.00570018,2939.6,2939.3,0.85073]
[1644628105482,0.80843609,2940.0,2939.3,0.85073]
[1644628105883,0.00846475,2939.6,2939.3,0.85073]
[1644628106836,0.80843609,2940.0,2939.3,0.85073]
[1644628107035,0.00846475,2939.6,2939.3,0.85073]
[1644628108035,0.17,2939.9,2939.2,1.70146]
[1644628108335,0.17,2939.9,2939.0,0.17]
[1644628108336,0.17,2939.5,2939.0,0.17]
[1644628108535,0.00846475,2939.6,2939.0,0.17]
[1644628108734,0.1701,2939.5,2939.0,0.17]
[1644628109334,0.1701,2939.6,2939.0,0.17]
[1644628109534,0.00846494,2939.4,2939.0,1.021]
[1644628110379,0.1701,2939.6,2939.0,1.021]
[1644628110683,0.00846499,2939.3,2939.0,1.021]
[1644628111284,0.00846499,2939.3,2939.1,3.46776944]
[1644628111685,0.80843609,2940.0,2939.1,3.46776944]
[1644628111885,0.00846499,2939.3,2939.2,1.90007917]
[1644628112085,0.00846499,2939.3,2939.1,1.70173]
[1644628112886,0.80843609,2940.0,2939.1,1.70173]
[1644628113087,0.00846499,2939.3,2939.1,1.70173]
[1644628114125,0.80843609,2940.0,2939.1,1.70173]
[1644628114426,0.00846499,2939.3,2939.1,1.70173]
[1644628115229,1.08530339,2939.9,2939.1,1.70173]
[1644628115528,0.00846499,2939.3,2939.1,1.70173]
[1644628116531,1.25540339,2939.9,2939.1,1.70173]
[1644628116731,0.00846499,2939.3,2939.1,1.70173]
[1644628117533,0.03385488,2939.8,2939.1,1.70173]
[1644628117773,0.00846499,2939.3,2939.1,1.70173]
[1644628118373,0.00846499,2939.3,2939.0,1.70176]
[1644628118575,0.00846499,2939.3,2938.8,0.1701]
[1644628118774,0.1701,2939.2,2938.8,0.1701]
[1644628119174,3.64561194,2939.2,2938.8,0.1701]
[1644628119374,0.1701,2939.2,2938.8,0.1701]
[1644628119575,0.98714323,2939.1,2938.8,0.1701]
[1644628119975,3.77720561,2939.6,2938.8,0.1701]
[1644628120378,0.00817951,2939.1,2938.8,0.1701]
[1644628120575,0.00817951,2939.1,2938.6,0.00818102]
[1644628121179,1.17773533,2939.3,2938.8,0.8511]
[1644628121381,1.17773533,2939.3,2938.5,1.70215]
[1644628121631,0.0081796,2939.0,2938.6,0.00818083]
[1644628122430,0.1701,2939.2,2938.1,1.3359]
[1644628122630,0.00817964,2938.9,2938.6,0.00818073]
[1644628123632,0.1701,2939.2,2938.3,1.70228]
[1644628123832,0.1701,2939.2,2938.1,1.3359]
[1644628124031,0.1701,2939.2,2938.6,0.00755398]
[1644628124032,0.0079434,2938.9,2938.6,0.00755398]
[1644628124831,0.1701,2939.2,2938.3,0.8512]
[1644628125031,0.0079434,2938.9,2938.6,0.00755398]
[1644628126080,0.1701,2939.2,2938.5,0.85115]
[1644628126280,0.0079434,2938.9,2938.6,0.00755398]
[1644628127087,0.0079434,2938.9,2938.6,0.00641891]
[1644628127287,0.1701,2939.2,2938.5,0.85115]
[1644628127486,1.17773533,2939.3,2938.5,0.85115]
[1644628127686,1.17773533,2939.3,2938.3,1.70223]
[1644628128586,0.00567832,2938.9,2938.3,1.70223]
[1644628129036,0.00567832,2938.9,2938.3,2.55331]
[1644628129431,0.00567832,2938.9,2938.3,1.70223]
[1644628129632,1.17773533,2939.3,2938.3,1.70223]
[1644628129832,0.00513508,2938.8,2938.3,1.87233]
[1644628130834,1.17773533,2939.3,2938.3,1.87233]
[1644628131034,0.00792214,2938.8,2938.4,0.00792332]
[1644628131234,0.00792214,2938.8,2938.4,0.85903332]
[1644628132034,0.1701,2939.2,2938.4,0.85111]
[1644628132236,0.00792223,2938.8,2938.5,0.00792327]
[1644628133284,0.1701,2939.2,2938.4,0.85111]
[1644628133481,0.00792232,2938.8,2938.5,0.00792327]
[1644628134580,0.00786522,2938.8,2938.5,0.00786617]
[1644628135584,1.34783533,2939.3,2938.4,1.02121]
[1644628135986,0.00786522,2938.8,2938.5,0.00786617]
[1644628136933,1.34783533,2939.3,2938.4,1.02121]
[1644628137131,0.00786522,2938.8,2938.5,0.00786617]
[1644628137931,0.94973968,2938.8,2938.4,1.02121]
[1644628138333,0.94973968,2938.8,2938.5,0.00787001]
[1644628138334,0.95760874,2938.8,2938.5,0.00787001]
[1644628138531,0.00786906,2938.8,2938.5,0.00787001]
[1644628139331,0.1701,2939.3,2938.4,0.85111]
[1644628139531,0.00786906,2938.8,2938.5,0.00787001]
[1644628139732,0.00786906,2938.8,2938.5,0.85888001]
[1644628139933,0.00786906,2938.8,2938.5,1.70990001]
[1644628140381,1.138746,2939.3,2938.4,2.55304]
[1644628140586,0.00786906,2938.8,2938.5,0.00787001]
[1644628141587,1.09606687,2939.1,2938.4,0.85111]
[1644628141789,0.0078688,2938.8,2938.5,0.00786975]
[1644628142791,0.6631,2938.9,2938.2,0.1701]
[1644628143192,3.49390603,2938.8,2938.5,0.00786975]
[1644628143392,0.0078688,2938.8,2938.5,0.00786975]
[1644628143596,0.1701,2938.7,2938.5,0.00786975]
[1644628144045,0.1701,2938.7,2937.6,0.8514]
[1644628144240,0.1701,2938.7,2938.5,6.975e-05]
[1644628144241,0.493,2938.6,2938.5,6.975e-05]
[1644628144439,4.87657854,2938.6,2938.5,6.975e-05]
[1644628144639,9.10537854,2938.6,2938.5,6.975e-05]
[1644628144838,7.94272628,2938.6,2938.5,6.975e-05]
[1644628145041,9.54272628,2938.6,2938.5,6.975e-05]
[1644628145243,0.8514348,2938.5,2937.2,0.1701]
[1644628145542,3.81925245,2938.4,2937.2,0.1701]
[1644628145742,5.05305245,2938.4,2937.2,1.02148]
[1644628146148,1.2338,2938.4,2937.3,0.85144]
[1644628146744,0.96192793,2938.1,2937.7,0.00278255]
[1644628147775,0.96192793,2938.1,2937.7,0.85135]
[1644628147976,1.2338,2938.4,2937.8,0.0027825]
[1644628148778,1.2338,2938.4,2937.7,0.85135]
[1644628149076,2.37906995,2938.4,2938.0,0.0084612]
[1644628149277,0.1701,2938.5,2938.0,0.8597312]
[1644628149682,0.00845891,2938.7,2938.0,0.8597312]
[1644628150084,1.2966,2938.8,2938.0,0.85127]
[1644628150281,0.00845939,2938.7,2938.2,0.00846096]
[1644628150482,1.10229892,2938.7,2938.2,0.85967096]
[1644628151288,1.09383953,2938.7,2938.2,0.85121]
[1644628151549,1.10229912,2938.7,2938.3,0.00846087]
[1644628152545,1.1265,2938.8,2938.2,0.85121]
[1644628152744,1.1265,2938.8,2938.4,0.85968082]
[1644628152745,0.00845968,2938.7,2938.4,0.85968082]
[1644628153745,0.89999082,2938.8,2938.4,0.85122]
[1644628153948,0.00845978,2938.7,2938.4,0.85968092]
[1644628154947,0.89999082,2938.8,2938.4,0.85122]
[1644628155148,0.00845978,2938.7,2938.4,0.85968092]
[1644628155391,0.00845978,2938.7,2938.4,0.00846092]
[1644628156090,0.89999082,2938.8,2938.3,0.85128]
[1644628156291,0.00845978,2938.7,2938.4,0.00846092]
[1644628157393,0.89999082,2938.8,2938.3,0.85128]
[1644628157592,0.00845978,2938.7,2938.4,0.00846092]
[1644628158393,0.89999082,2938.8,2938.3,0.85128]
[1644628158892,0.00845978,2938.7,2938.4,0.00846092]
[1644628159738,0.89999082,2938.8,2938.3,0.85128]
[1644628159940,0.00845978,2938.7,2938.4,0.00846092]
[1644628160841,0.89999082,2938.8,2938.3,0.85128]
[1644628161040,0.00845978,2938.7,2938.4,0.00846092]
[1644628162041,0.00845978,2938.7,2938.3,0.85128]
[1644628162042,0.89999082,2938.8,2938.3,0.85128]
[1644628162440,0.00845978,2938.7,2938.4,0.00846092]
[1644628163289,0.89999082,2938.8,2938.3,0.85128]
[1644628163489,0.00845978,2938.7,2938.4,0.00846092]
[1644628164490,0.89999082,2938.8,2938.3,0.85128]
[1644628164689,0.00845978,2938.7,2938.4,0.00846092]
[1644628165689,0.89999082,2938.8,2938.3,0.85128]
[1644628165890,0.00845978,2938.7,2938.4,0.00846092]
[1644628166934,0.00845978,2938.7,2938.3,0.85128]
[1644628166935,0.89999082,2938.8,2938.3,0.85128]
[1644628167132,0.00845978,2938.7,2938.4,0.00846092]
[1644628168132,0.89999082,2938.8,2938.2,1.70231]
[1644628168333,0.00845978,2938.7,2938.4,0.00846092]
[1644628169135,0.00845978,2938.7,2938.4,0.00749003]
[1644628169337,0.89999082,2938.8,2938.2,1.70231]
[1644628171991,0.00568474,2938.7,2938.2,1.70231]
[1644628172790,0.89999082,2938.8,2938.2,1.70231]
[1644628173191,0.00845964,2938.7,2938.3,0.00846089]
[1644628174025,0.89999082,2938.8,2938.2,1.70231]
[1644628174424,0.00845973,2938.7,2938.3,0.00846099]
[1644628175330,0.502621,2939.0,2938.2,1.70231]
[1644628175530,0.00845973,2938.7,2938.3,0.00846099]
[1644628176530,0.502621,2939.0,2938.2,1.70231]
[1644628176830,0.00845973,2938.7,2938.3,0.00846099]
[1644628177780,0.502621,2939.0,2938.2,1.70231]
[1644628177974,0.00845973,2938.7,2938.3,0.00846099]
[1644628178376,0.00845973,2938.7,2938.3,0.85961099]
[1644628178976,0.502621,2939.0,2938.3,0.85115]
[1644628179180,0.00845973,2938.7,2938.3,0.85961099]
[1644628180184,0.502621,2939.0,2938.2,1.70231]
[1644628180384,0.00845973,2938.7,2938.3,0.00846099]
[1644628181186,0.87809787,2938.5,2938.3,0.00846099]
[1644628181386,0.87809787,2938.5,2938.2,1.70231]
[1644628181630,0.87809787,2938.5,2938.3,0.00846099]
[1644628181831,0.00845973,2938.7,2938.3,0.00846099]
[1644628182532,0.00845973,2938.7,2938.2,1.70231]
[1644628182533,0.1701,2938.9,2938.2,1.70231]
[1644628182731,0.00845973,2938.7,2938.3,0.00846099]
[1644628182932,0.93370963,2938.7,2938.3,0.00846099]
[1644628183732,0.9252499,2938.7,2938.2,1.70231]
[1644628183933,0.93370963,2938.7,2938.3,0.00846099]
[1644628184335,0.93370963,2938.7,2938.3,0.85972099]
[1644628184834,0.1701,2938.6,2937.7,0.1701]
[1644628185040,0.493,2938.5,2937.7,0.1701]
[1644628185286,2.724767,2938.4,2938.3,6.099e-05]
[1644628185476,2.724767,2938.4,2937.7,0.1701]
[1644628185477,0.00073901,2938.2,2937.7,0.1701]
[1644628185676,0.1701,2938.1,2937.7,0.1701]
[1644628185876,0.94977028,2938.0,2937.7,0.1701]
[1644628187880,0.1701,2937.9,2937.7,0.1701]
[1644628188095,0.493,2937.8,2936.9,0.00389853]
[1644628188281,0.85174,2937.5,2936.9,0.00389853]
[1644628188480,0.85174,2937.5,2936.2,3.634009]
[1644628188481,4.4132,2937.7,2936.7,0.00389853]
[1644628188682,4.9062,2937.7,2936.8,1.44930622]
[1644628189025,4.9062,2937.7,2937.2,0.00846191]
[1644628189430,4.7361,2937.7,2937.2,0.00846191]
[1644628189629,4.7361,2937.7,2936.8,0.00389853]
[1644628189831,4.7361,2937.7,2936.9,1.4492438]
[1644628190033,4.7361,2937.7,2937.3,0.00846181]
[1644628190034,4.2431,2937.7,2937.3,0.00846181]
[1644628190531,0.94977028,2938.0,2937.3,0.00846181]
[1644628190732,1.80133028,2938.0,2937.3,0.00846181]
[1644628190933,1.80133028,2938.0,2937.2,0.00389853]
[1644628191133,1.80133028,2938.0,2937.5,0.00846162]
[1644628191334,0.94977028,2938.0,2937.5,0.00846162]
[1644628191534,0.4701,2937.9,2937.5,0.00846162]
[1644628191733,0.1701,2937.9,2937.5,0.00846162]
[1644628191933,0.8516187,2937.8,2937.5,0.00846162]
[1644628192134,0.1701,2937.7,2937.0,0.00389853]
[1644628192335,0.1701,2937.7,2937.6,0.00846158]
[1644628192535,0.1701,2937.8,2937.6,0.00846158]
[1644628193379,1.14360643,2937.4,2937.0,0.00389853]
[1644628193579,0.1701,2937.8,2936.8,0.00389853]
[1644628193780,1.7033614,2937.7,2936.8,0.00389853]
[1644628194581,0.85169,2937.7,2936.8,0.00389853]
[1644628194780,0.85169,2937.7,2937.1,0.008462]
[1644628194980,0.94126215,2937.2,2937.1,0.008462]
[1644628195180,0.1701,2937.6,2937.1,0.008462]
[1644628195181,1.7034623,2937.5,2937.1,0.008462]
[1644628195381,0.1701,2937.4,2937.1,0.008462]
[1644628195684,0.1701,2937.4,2936.8,0.00389853]
[1644628195880,1.7034623,2937.5,2937.1,0.008462]
[1644628196281,1.16290821,2937.4,2937.1,0.008462]
[1644628196932,1.16290821,2937.4,2936.8,0.00389853]
[1644628197131,1.16290821,2937.4,2937.1,0.008462]
[1644628198034,1.16290821,2937.4,2936.8,0.00389853]
[1644628198435,1.16290821,2937.4,2937.1,0.008462]
[1644628198634,1.7034623,2937.5,2937.1,0.008462]
[1644628199234,1.7034623,2937.5,2936.8,0.00389853]
[1644628199639,1.7034623,2937.5,2937.2,0.00846195]
[1644628199939,0.94740762,2937.4,2937.2,0.00846195]
[1644628200581,1.7034623,2937.5,2936.8,0.00389853]
[1644628200782,1.7034623,2937.5,2937.2,0.00846195]
[1644628201879,1.09416118,2937.4,2937.2,0.00846191]
[1644628202979,1.09416118,2937.4,2936.8,0.00389853]
[1644628203180,1.7034623,2937.5,2937.2,0.00846195]
[1644628204025,1.7034623,2937.5,2936.8,0.00389853]
[1644628204227,2.70798064,2937.5,2936.8,0.00389853]
[1644628204427,2.70798064,2937.5,2937.2,0.00846191]
[1644628204626,1.6834623,2937.5,2937.2,0.00846191]
[1644628205330,1.6834623,2937.5,2936.8,0.00389853]
[1644628205527,1.6834623,2937.5,2937.2,0.00846191]
[1644628206528,1.6834623,2937.5,2936.8,0.00389853]
[1644628206733,1.6834623,2937.5,2937.2,0.00846191]
[1644628207332,0.8317223,2937.5,2937.2,0.00846191]
[1644628207533,1.6835223,2937.5,2937.2,0.00846191]
[1644628207808,1.6835223,2937.5,2936.5,0.00389853]
[1644628207809,0.8518417,2937.2,2936.5,0.00389853]
[1644628208003,0.8518417,2937.2,2936.7,0.0338532]
[1644628209002,1.7036978,2937.1,2936.5,0.00389853]
[1644628209204,1.7036978,2937.1,2936.8,0.00846228]
[1644628210205,1.7036978,2937.1,2936.3,0.85185]
[1644628210404,0.8518378,2937.1,2936.8,0.00846228]
[1644628211212,3.0486917,2937.1,2936.8,0.00846228]
[1644628211406,0.8519885,2936.9,2936.2,0.00396259]
[1644628211631,0.8519885,2936.9,2936.8,0.00846228]
[1644628211834,0.1701,2937.0,2936.8,0.00846228]
[1644628212233,1.70405,2936.9,2936.8,0.00846228]
[1644628212432,1.70405,2936.9,2936.2,0.00396259]
[1644628212633,1.09634148,2936.5,2936.2,0.00396259]
[1644628212832,1.09634148,2936.5,2936.3,0.03385459]
[1644628213836,1.94831338,2936.5,2935.9,0.00396259]
[1644628214034,1.94831338,2936.5,2936.3,0.0084628]
[1644628215033,1.94831338,2936.5,2935.9,0.00396259]
[1644628215291,1.94831338,2936.5,2936.3,0.0084628]
[1644628215292,3.42183972,2936.4,2936.3,0.0084628]
[1644628215685,3.91483972,2936.4,2936.3,0.0084628]
[1644628215885,0.6631,2936.4,2936.3,0.0084628]
[1644628216086,0.6631,2936.4,2935.9,0.00396259]
[1644628216286,1.3450619,2936.4,2935.9,0.00396259]
[1644628216489,2.5195619,2936.4,2936.2,0.00846285]
[1644628217291,2.5195619,2936.4,2935.5,0.00396259]
[1644628217292,0.00705238,2936.3,2935.5,0.85603259]
[1644628217492,0.50005238,2936.3,2935.6,0.00396259]
[1644628217693,1.35213238,2936.3,2936.2,0.0084629]
[1644628218493,1.35213238,2936.3,2935.6,0.00396259]
[1644628218793,0.50005238,2936.3,2936.1,0.00846294]
[1644628219230,0.80005238,2936.3,2936.1,0.00846294]
[1644628219830,0.8521393,2936.2,2935.4,0.00396259]
[1644628220032,0.85214,2936.1,2935.4,0.00396259]
[1644628221231,0.00705238,2936.0,2935.6,0.00846342]
[1644628221637,1.15192858,2935.9,2935.6,0.00846342]
[1644628222034,2.25,2935.8,2935.0,4.88466475]
[1644628222235,2.05147918,2936.0,2935.1,1.4498361]
[1644628222434,2.05147918,2936.0,2935.6,0.00846342]
[1644628223277,0.9509112,2935.7,2935.2,0.85214]
[1644628224280,0.00705238,2935.6,2935.2,0.85214]
[1644628224677,0.01277536,2935.6,2935.2,0.85214]
[1644628225678,0.00705238,2935.6,2935.2,0.85214]
[1644628226081,0.0084629,2935.5,2935.2,0.85214]
[1644628226548,0.0084629,2935.5,2935.3,3.41873153]
[1644628226750,0.00705238,2935.6,2935.5,0.0169258]
[1644628226953,0.00705238,2935.6,2935.5,1.46661596]
[1644628227149,0.00705238,2935.6,2935.5,0.0169258]
[1644628227750,1.10825881,2936.2,2935.7,0.852]
[1644628228449,0.85903588,2936.5,2935.7,0.852]
[1644628228450,0.00572298,2936.1,2935.7,0.852]
[1644628228652,0.00572298,2936.1,2935.8,1.7495292]
[1644628228850,0.00572298,2936.1,2935.9,2.3022192]
[1644628229049,0.00572298,2936.1,2936.0,1.4505292]
[1644628229251,0.00705238,2936.5,2936.0,0.001]
[1644628229454,0.00705238,2936.5,2935.9,0.85269]
[1644628229651,0.00572298,2936.2,2935.9,0.85269]
[1644628229850,0.00572298,2936.2,2935.9,0.85169]
[1644628230051,0.00572298,2936.2,2935.9,0.85269]
[1644628230481,0.00705238,2936.5,2935.9,0.85269]
[1644628230881,0.00846229,2936.2,2935.9,0.85269]
[1644628231484,0.00705238,2936.1,2935.9,0.85269]
[1644628233285,0.01551472,2936.1,2935.9,0.85269]
[1644628234131,0.00705238,2936.1,2935.9,0.85269]
[1644628234329,0.01551472,2936.1,2935.9,0.85269]
[1644628234529,0.00846234,2936.1,2935.9,0.85269]
[1644628235332,0.00705238,2936.5,2935.9,0.85269]
[1644628235529,0.00846234,2936.1,2935.9,0.85665774]
[1644628235729,0.00846234,2936.1,2935.9,0.85269]
[1644628236529,0.00705238,2936.5,2935.9,0.85269]
[1644628236737,0.00782454,2936.1,2935.9,0.85665774]
[1644628236934,0.00782454,2936.1,2935.9,0.85269]
[1644628237535,0.00705238,2936.0,2935.9,0.001]
[1644628240678,0.00782458,2936.1,2935.9,0.001]
[1644628241278,0.6631,2936.5,2935.7,0.00396774]
[1644628241531,0.6631,2936.5,2935.5,0.0169258]
[1644628241737,0.00788786,2936.1,2935.5,0.0169258]
[1644628241935,1.02699077,2935.8,2935.5,0.0169258]
[1644628242736,1.03487896,2935.8,2935.5,0.0169258]
[1644628243138,0.00788819,2935.8,2935.5,0.0169258]
[1644628243737,1.1739,2936.1,2935.5,0.0169258]
[1644628243738,0.00705238,2935.7,2935.5,0.0169258]
[1644628243939,0.00705238,2935.7,2935.5,0.02089354]
[1644628244140,0.00705238,2935.7,2935.5,0.0169258]
[1644628244645,4.057e-05,2935.8,2935.7,3.4]
[1644628244845,4.057e-05,2935.8,2935.7,5.64370465]
[1644628245050,0.1703,2937.0,2935.9,1.70338]
[1644628245294,0.1703,2937.5,2936.0,10.44370465]
[1644628245477,0.1701,2937.6,2936.1,1.45070465]
[1644628245678,0.1701,2937.7,2936.4,0.85161]
[1644628245881,0.1701,2937.7,2936.8,1.01091421]
[1644628246080,0.1701,2937.8,2936.6,0.001]
[1644628246280,0.1701,2937.8,2936.7,1.87315]
[1644628246884,0.1701,2937.8,2936.8,3.46363941]
[1644628247790,0.1701,2937.8,2936.8,0.85153]
[1644628247987,0.1701,2937.8,2936.8,4.32172754]
[1644628249029,0.00846112,2937.4,2936.8,4.32172754]
[1644628249229,0.00846112,2937.4,2936.9,0.1701]
[1644628249833,1.0216433,2938.1,2936.9,0.1701]
[1644628250035,0.00846126,2937.3,2937.2,0.85153]
[1644628250235,0.00846126,2937.3,2937.2,5.50188923]
[1644628250439,0.00846126,2937.3,2937.2,6.50188923]
[1644628251037,0.00073901,2938.2,2937.2,6.50188923]
[1644628251235,0.00846117,2937.4,2937.2,7.35323923]
[1644628251436,0.00846117,2937.4,2937.3,3.96986731]
[1644628251639,0.00073901,2938.2,2937.4,3.41692234]
[1644628251837,0.00073901,2938.2,2937.5,5.84629189]
[1644628252040,0.00073901,2938.2,2937.6,0.1701]
[1644628252237,0.00073901,2938.2,2937.6,0.6631]
[1644628252437,0.00073901,2938.2,2937.9,1.0599359]
[1644628252639,0.00073901,2938.2,2937.9,1.9110959]
[1644628252878,0.00073901,2938.2,2938.0,3.42013888]
[1644628253283,0.00073901,2938.2,2937.9,0.85116]
[1644628253484,0.00073901,2938.2,2938.0,0.85116]
[1644628253684,0.00644976,2938.2,2938.1,3.43760364]
[1644628253883,0.00644976,2938.2,2938.0,4.2801826]
[1644628254083,0.00644976,2938.2,2938.0,0.85116]
[1644628254284,0.00644976,2938.2,2938.0,4.29100556]
[1644628254484,0.00644976,2938.2,2938.0,0.85116]
[1644628254685,0.00073901,2938.2,2938.0,0.85116]
[1644628254885,0.00920475,2938.2,2938.0,0.85116]
[1644628255085,0.00920475,2938.2,2938.0,1.70231]
[1644628255287,0.00920475,2938.2,2938.0,5.09746997]
[1644628255485,0.00920475,2938.2,2938.0,1.70231]
[1644628255886,0.00073901,2938.2,2938.0,0.85116]
[1644628256087,0.00920475,2938.2,2938.0,0.85116]
[1644628256936,0.00073901,2938.2,2938.0,4.24828681]
[1644628257334,0.00920475,2938.2,2938.0,4.24828681]
[1644628258138,0.00073901,2938.2,2938.0,4.24828681]
[1644628258641,0.00920475,2938.2,2938.0,0.85116]
[1644628258838,0.00920475,2938.2,2937.9,1.70232]
[1644628259437,0.00073901,2938.2,2937.9,1.70232]
[1644628259639,0.00073901,2938.2,2937.8,0.1701]
[1644628259640,1.11806356,2938.0,2937.8,0.1701]
[1644628260581,1.06806356,2938.0,2937.8,0.1701]
[1644628260780,0.00073901,2938.2,2937.4,0.01792234]
[1644628260781,0.1701,2937.9,2937.4,0.01792234]
[1644628260982,0.00846593,2938.0,2937.6,1.70274]
[1644628261184,0.1701,2937.9,2937.6,1.70274]
[1644628261580,0.1701,2937.9,2937.7,0.001]
[1644628261981,0.00846607,2937.9,2937.7,0.001]
[1644628262982,0.1701,2938.1,2937.7,0.001]
[1644628263186,0.00073901,2938.2,2937.7,0.001]
[1644628263384,0.00846603,2937.9,2937.7,0.001]
[1644628263588,0.00846603,2937.9,2937.7,0.85235]
[1644628264251,0.00073901,2938.2,2937.7,0.85235]
[1644628264452,0.00846603,2937.9,2937.7,0.85235]
[1644628265457,0.00073901,2938.2,2937.7,0.85235]
[1644628265654,0.00846603,2937.9,2937.7,0.85235]
[1644628266655,0.00073901,2938.2,2937.7,0.85235]
[1644628266855,0.00846603,2937.9,2937.7,0.85235]
[1644628267880,0.00073901,2938.2,2937.7,0.85235]
[1644628268080,0.00846603,2937.9,2937.7,0.85235]
[1644628269082,0.1701,2938.7,2937.7,0.001]
[1644628269083,5.493,2938.5,2937.7,0.001]
[1644628269281,5.493,2938.5,2937.4,0.01692234]
[1644628269282,0.86018603,2937.9,2937.4,0.01692234]
[1644628269482,0.8517614,2937.8,2937.4,0.01692234]
[1644628269782,0.1701,2937.7,2937.4,0.01692234]
[1644628269981,1.16052236,2937.7,2937.4,0.01692234]
[1644628270185,0.1701,2937.7,2937.4,0.01692234]
[1644628270685,0.1701,2937.7,2937.4,0.01971623]